bitfinex-derivatives/quotes_SOLF0:USTF0_20251023
["timestamp","ask_amount","ask_price","bid_price","bid_amount"]
[1761250386322,4.7578047,189.69,189.65,2.84]
[1761250386620,4.7578047,189.71,189.65,2.84]
[1761250387219,4.7578047,189.7,189.65,2.84]
[1761250387418,4.7578047,189.71,189.64,6.39]
[1761250387616,9.31140548,189.71,189.66,2.84]
[1761250387813,4.55360078,189.7,189.66,2.84]
[1761250388219,4.55360078,189.7,189.68,2.84]
[1761250389420,4.55360078,189.69,189.68,2.84]
[1761250389621,4.7578047,189.71,189.68,2.84]
[1761250390016,4.7578047,189.71,189.69,2.84]
[1761250390216,4.7578047,189.72,189.69,2.84]
[1761250390416,4.7578047,189.73,189.69,2.84]
[1761250390819,4.7578047,189.73,189.72,2.84]
[1761250391018,4.7578047,189.74,189.72,2.84]
[1761250392221,9.21236653,189.76,189.72,2.84]
[1761250392423,4.7578047,189.76,189.72,2.84]
[1761250393118,4.7578047,189.75,189.7,4.53]
[1761250393317,4.7578047,189.73,189.7,4.53]
[1761250393521,7.5378047,189.73,189.7,4.53]
[1761250393823,4.7578047,189.73,189.7,4.53]
[1761250394021,4.7578047,189.74,189.7,4.53]
[1761250394721,4.7578047,189.74,189.7,7.37]
[1761250395023,3.98511036,189.73,189.7,7.37]
[1761250395215,3.98511036,189.72,189.71,2.84]
[1761250395425,4.7578047,189.78,189.71,2.84]
[1761250395626,4.7578047,189.77,189.71,2.84]
[1761250396321,4.7578047,189.76,189.7,4.53]
[1761250396517,4.7578047,189.75,189.7,4.53]
[1761250396719,4.7578047,189.76,189.7,7.37]
[1761250396924,4.46023176,189.76,189.7,7.37]
[1761250397123,7.5378047,189.77,189.7,7.37]
[1761250397324,7.5378047,189.77,189.71,4.7427]
[1761250398128,4.7578047,189.77,189.73,2.84]
[1761250398329,2.78,189.77,189.72,4.7425]
[1761250399723,2.78,189.77,189.72,7.5825]
[1761250399923,4.06398817,189.78,189.72,4.7425]
[1761250401023,4.06398817,189.78,189.71,2.84]
[1761250401226,13.26560592,189.78,189.71,2.84]
[1761250401430,8.80528817,189.78,189.71,2.84]
[1761250401840,8.80528817,189.78,189.71,7.5828]
[1761250402736,4.7413,189.78,189.72,4.7425]
[1761250404133,2.78,189.77,189.71,2.84]
[1761250404534,2.78,189.76,189.7,4.53]
[1761250404728,4.06398817,189.77,189.7,4.53]
[1761250404729,2.78,189.74,189.7,4.53]
[1761250405134,6.84398817,189.77,189.7,7.37]
[1761250405334,2.78,189.76,189.7,4.53]
[1761250405533,2.78,189.75,189.7,4.53]
[1761250406630,8.52377022,189.77,189.71,2.82]
[1761250406839,4.7412,189.78,189.71,2.82]
[1761250407032,2.85,189.77,189.71,2.82]
[1761250407438,6.81698023,189.77,189.71,2.82]
[1761250408726,3.96698023,189.77,189.71,2.82]
[1761250408935,3.96698023,189.79,189.71,2.82]
[1761250409443,8.70758023,189.8,189.71,2.82]
[1761250409742,11.43758023,189.8,189.72,4.7424]
[1761250409933,3.96698023,189.79,189.72,4.7424]
[1761250410329,3.96698023,189.79,189.72,7.5024]
[1761250410627,3.96698023,189.79,189.7,4.53]
[1761250410628,3.96698023,189.79,189.74,2.76]
[1761250411038,4.7403,189.82,189.75,2.76]
[1761250411236,3.96630512,189.83,189.75,2.76]
[1761250411638,6.69630512,189.83,189.75,2.76]
[1761250412240,6.69630512,189.83,189.76,4.7414]
[1761250412436,6.69630512,189.83,189.71,2.76]
[1761250412831,3.96630512,189.83,189.78,2.76]
[1761250413037,3.96630512,189.85,189.78,2.76]
[1761250413236,11.43550512,189.86,189.78,2.76]
[1761250413437,3.96630512,189.85,189.78,2.76]
[1761250413648,0.20493,189.88,189.78,2.76]
[1761250413846,0.20493,189.88,189.84,4.7395]
[1761250414038,0.20493,189.88,189.85,2.76]
[1761250414843,0.20493,189.88,189.87,2.76]
[1761250415348,2.73,189.94,189.87,2.76]
[1761250415541,2.73,189.94,189.88,4.7385]
[1761250416446,2.73,189.94,189.87,2.76]
[1761250416654,2.73,189.93,189.8,2.76]
[1761250416951,2.73,189.93,189.84,7.4996]
[1761250417738,2.73,189.93,189.85,2.76]
[1761250418951,2.73,189.93,189.86,4.7389]
[1761250419356,2.73,189.98,189.87,2.76]
[1761250419655,2.73,189.98,189.89,4.7382]
[1761250419952,2.73,189.98,189.89,7.4982]
[1761250420151,2.73,189.98,189.89,2.76]
[1761250420550,2.73,189.98,189.9,4.7379]
[1761250421249,2.73,189.98,189.9,7.4979]
[1761250422051,2.73,189.98,189.91,4.7377]
[1761250422550,2.73,190.01,189.93,2.76]
[1761250423055,2.73,190.01,189.93,7.4972]
[1761250423252,2.73,190.01,189.93,2.76]
[1761250423454,2.73,190.06,189.93,2.76]
[1761250423750,2.73,190.06,189.97,7.4962]
[1761250424150,2.73,190.06,189.98,2.76]
[1761250424356,2.73,190.1,190.0,2.76]
[1761250424950,4.7334,190.09,190.0,2.76]
[1761250425149,2.73,190.09,190.0,2.76]
[1761250425545,7.4636,190.09,190.0,2.76]
[1761250429657,4.7338,190.08,190.0,2.76]
[1761250430058,2.73,190.07,190.0,2.76]
[1761250430246,2.73,190.09,189.96,7.4965]
[1761250430560,2.73,190.09,189.97,4.7362]
[1761250430860,4.734,190.07,189.98,2.76]
[1761250432053,4.734,190.07,189.99,2.76]
[1761250432251,7.464,190.07,189.99,2.76]
[1761250433554,2.73,190.06,189.99,2.76]
[1761250434059,2.73,190.05,189.97,4.99]
[1761250434361,4.7349,190.04,189.97,4.99]
[1761250434662,7.4649,190.04,189.97,4.99]
[1761250434865,2.73,190.04,189.98,2.76]
[1761250437664,2.73,190.04,190.0,2.76]
[1761250438457,2.73,190.04,189.99,4.7359]
[1761250440958,2.73,190.04,189.97,9.7263]
[1761250441560,2.73,190.04,189.98,7.5059]
[1761250441761,2.73,190.04,189.98,4.7359]
[1761250441962,2.73,190.04,189.97,4.99]
[1761250442662,2.63,190.01,189.97,4.99]
[1761250444067,2.63,190.05,189.97,4.99]
[1761250444464,2.63,190.01,189.97,4.99]
[1761250447564,7.18602058,190.05,189.97,7.76]
[1761250447766,2.63,190.05,189.97,7.76]
[1761250447957,2.63,190.05,189.97,4.99]
[1761250448161,2.63,190.02,189.97,4.99]
[1761250448363,6.52471814,190.02,189.97,4.99]
[1761250448563,2.63,190.01,189.97,4.99]
[1761250448766,2.63,190.03,189.97,4.99]
[1761250448965,2.63,190.02,189.97,4.99]
[1761250449166,2.63,190.01,189.97,4.99]
[1761250449465,2.63,190.0,189.97,4.99]
[1761250450566,2.63,189.99,189.97,4.99]
[1761250451164,15.85190771,190.04,189.97,4.99]
[1761250451369,6.70695968,190.06,189.97,4.99]
[1761250451370,11.09926115,190.03,189.97,4.99]
[1761250451569,2.63,190.01,189.97,4.99]
[1761250451771,6.53024711,190.01,189.97,4.99]
[1761250451971,2.63,190.01,189.97,4.99]
[1761250453570,6.5344955,190.01,189.97,4.99]
[1761250453771,11.10829597,190.01,189.97,4.99]
[1761250453973,67.34695968,190.06,189.98,2.77]
[1761250453974,3.9044955,190.0,189.98,2.77]
[1761250454174,13.24070396,190.04,189.98,2.77]
[1761250454474,2.63,190.01,189.97,4.99]
[1761250454866,2.63,190.0,189.97,4.99]
[1761250455071,2.63,189.99,189.97,4.99]
[1761250455268,6.5344955,189.99,189.97,4.99]
[1761250455468,3.9044955,189.98,189.97,4.99]
[1761250455669,6.5344955,190.01,189.97,4.99]
[1761250455870,6.5344955,190.0,189.97,4.99]
[1761250456063,3.9044955,189.99,189.97,4.99]
[1761250456268,3.9044955,189.98,189.97,4.99]
[1761250456468,3.9044955,189.99,189.97,4.99]
[1761250456675,3.9044955,189.98,189.97,4.99]
[1761250456876,3.9044955,189.99,189.97,4.99]
[1761250457072,3.9044955,189.98,189.97,7.76]
[1761250457273,3.9044955,189.99,189.98,2.77]
[1761250461569,8.49797766,189.99,189.98,2.77]
[1761250462481,3.9044955,189.99,189.98,2.77]
[1761250463082,3.9044955,190.0,189.98,2.77]
[1761250463385,3.9044955,190.0,189.97,9.7262]
[1761250463386,6.5344955,189.99,189.97,4.99]
[1761250463588,3.9044955,189.98,189.97,4.99]
[1761250466181,3.9044955,189.98,189.97,1.37161333]
[1761250466182,6.5344955,189.98,189.97,1.37161333]
[1761250466381,15.90578281,189.98,189.97,1.333e-05]
[1761250467185,7.6268,189.96,189.89,7.5083]
[1761250467383,3.9044955,189.95,189.89,7.5083]
[1761250468690,8.6414955,189.95,189.89,7.5083]
[1761250472698,10.23839909,189.95,189.89,7.5083]
[1761250472898,6.33390359,189.95,189.89,7.5083]
[1761250473098,4.736,189.99,189.92,7.4574]
[1761250473296,2.65,189.98,189.91,1.59690359]
[1761250473492,6.59352168,189.98,189.91,1.59690359]
[1761250473698,3.94352168,189.97,189.92,2.72]
[1761250473893,1.59690359,190.0,189.92,2.72]
[1761250474093,5.54073435,190.0,189.92,2.72]
[1761250474289,2.65,189.99,189.92,2.72]
[1761250474494,6.59383076,189.99,189.92,2.72]
[1761250474695,3.94383076,189.98,189.92,2.72]
[1761250474896,2.65,189.99,189.92,2.72]
[1761250475201,6.59383076,189.99,189.92,2.72]
[1761250475701,2.65,189.97,189.93,4.7373]
[1761250475901,2.65,189.97,189.93,7.4573]
[1761250476104,6.59383076,189.97,189.93,7.4573]
[1761250477098,6.59383076,189.97,189.94,2.72]
[1761250477294,3.94383076,189.97,189.94,2.72]
[1761250477698,3.94383076,189.99,189.95,2.72]
[1761250478992,6.59383076,189.99,189.95,2.72]
[1761250480503,2.65,189.97,189.89,2.72]
[1761250480702,2.65,189.95,189.89,2.72]
[1761250481002,6.59383076,189.95,189.89,2.72]
[1761250481208,3.94383076,189.94,189.89,2.72]
[1761250481506,7.3872,189.94,189.89,7.4583]
[1761250481707,3.94383076,189.93,189.89,7.4583]
[1761250482106,2.65,189.92,189.88,2.8]
[1761250482303,2.65,189.92,189.88,5.52]
[1761250482609,3.95416129,189.92,189.89,2.72]
[1761250482810,2.65,189.93,189.89,2.72]
[1761250483503,6.60416129,189.93,189.89,2.72]
[1761250484811,3.95416129,189.93,189.89,2.72]
[1761250485010,4.7372,189.94,189.89,2.72]
[1761250485011,11.34136129,189.94,189.89,2.72]
[1761250485199,3.95416129,189.93,189.89,2.72]
[1761250486706,6.60416129,189.93,189.89,2.72]
[1761250488613,3.95416129,189.93,189.89,4.7383]
[1761250488813,3.95416129,189.93,189.9,2.72]
[1761250489809,3.95416129,189.93,189.91,2.72]
[1761250490010,8.98370359,189.96,189.91,2.72]
[1761250490011,6.60357834,189.95,189.91,2.72]
[1761250490211,4.24690359,189.94,189.88,5.52]
[1761250490412,8.20048193,189.94,189.88,5.52]
[1761250490613,6.60357834,189.93,189.89,2.72]
[1761250490818,1.59690359,189.94,189.89,2.72]
[1761250491116,4.7372,189.94,189.89,2.72]
[1761250491314,5.54998555,189.96,189.89,2.72]
[1761250491518,3.95308196,189.95,189.89,2.72]
[1761250491819,5.54998555,189.96,189.89,2.72]
[1761250492212,10.28678555,189.96,189.9,7.458]
[1761250492408,3.95308196,189.95,189.91,2.72]
[1761250493714,3.95308196,189.95,189.92,2.72]
[1761250494721,8.68988196,189.96,189.92,2.72]
[1761250495618,11.33988196,189.96,189.92,2.72]
[1761250495820,3.95308196,189.95,189.92,2.72]
[1761250496214,8.68988196,189.96,189.92,2.72]
[1761250496415,3.95308196,189.96,189.93,1.59690359]
[1761250496623,2.65,189.98,189.94,2.72]
[1761250496810,2.65,189.98,189.91,1.59690359]
[1761250496811,2.65,189.97,189.91,4.31690359]
[1761250497015,2.65,189.97,189.92,2.72]
[1761250497217,2.65,189.97,189.93,4.7373]
[1761250497421,2.65,189.97,189.93,7.4573]
[1761250498924,2.65,189.97,189.93,7.4273]
[1761250499826,2.65,189.97,189.94,2.69]
[1761250500323,4.24690359,189.97,189.91,2.69]
[1761250500627,4.31690359,189.95,189.88,5.49]
[1761250500822,8.26998555,189.95,189.88,2.8]
[1761250501029,6.67308196,189.94,189.89,2.69]
[1761250501326,4.7367,189.96,189.91,2.69]
[1761250501520,3.95061088,189.96,189.95,2.69]
[1761250501730,8.48745323,190.0,189.95,2.69]
[1761250502025,3.95061088,189.99,189.96,2.69]
[1761250502222,2.72,189.99,189.96,2.69]
[1761250502420,6.67061088,189.99,189.96,2.69]
[1761250502621,3.95061088,189.98,189.96,2.69]
[1761250502923,2.72,189.99,189.96,2.69]
[1761250503635,3.95061088,190.0,189.96,2.69]
[1761250503823,3.95061088,190.01,189.96,2.69]
[1761250504323,3.95061088,190.02,189.97,2.69]
[1761250504825,3.95061088,190.02,189.99,2.69]
[1761250505129,3.95061088,190.03,189.99,2.69]
[1761250505516,6.67061088,190.03,189.99,2.69]
[1761250505722,3.95061088,190.02,189.99,2.69]
[1761250506131,6.67061088,190.03,189.99,2.69]
[1761250506330,3.95061088,190.03,189.99,2.69]
[1761250506535,6.67061088,190.03,189.99,2.69]
[1761250506718,3.95061088,190.02,189.99,2.69]
[1761250506925,2.72,190.03,189.99,2.69]
[1761250507224,6.67061088,190.03,189.99,2.69]
[1761250507425,3.95061088,190.03,189.99,2.69]
[1761250507732,2.72,190.06,190.0,2.69]
[1761250507933,2.72,190.04,190.0,2.69]
[1761250508128,6.67061088,190.04,190.0,2.69]
[1761250508534,3.95061088,190.03,190.0,2.69]
[1761250508829,3.95061088,190.04,190.0,2.69]
[1761250509132,4.31690359,190.01,189.94,4.28690359]
[1761250509331,4.31690359,190.01,189.95,2.69]
[1761250509530,2.72,190.0,189.95,2.69]
[1761250509728,2.72,189.99,189.95,2.69]
[1761250509930,4.31690359,190.02,189.95,2.69]
[1761250510232,2.72,190.01,189.95,2.69]
[1761250510427,6.67061088,190.01,189.95,2.69]
[1761250511228,4.31690359,190.0,189.95,2.69]
[1761250511429,7.456,189.99,189.95,2.69]
[1761250512829,7.4564,189.98,189.92,7.4275]
[1761250513033,2.72,189.98,189.92,2.69]
[1761250513929,4.7366,189.97,189.92,2.69]
[1761250514130,7.4566,189.97,189.92,2.69]
[1761250514930,7.4566,189.97,189.93,2.74]
[1761250515131,7.4566,189.97,189.93,5.43]
[1761250516626,2.72,189.95,189.93,2.74]
[1761250516833,1.59690359,189.94,189.93,2.74]
[1761250517033,4.31690359,189.94,189.93,2.74]
[1761250518139,8.27214516,189.94,189.93,2.74]
[1761250519032,6.67524157,189.94,189.93,2.74]
[1761250519231,7.4563,189.98,189.93,2.74]
[1761250519536,2.72,190.06,189.97,2.69]
[1761250519728,2.72,190.06,189.99,4.28690359]
[1761250520126,11.2979093,190.06,189.99,4.28690359]
[1761250520339,7.25502344,190.06,189.99,4.28690359]
[1761250520536,2.72,190.06,189.99,2.69]
[1761250520734,1.59690359,190.03,189.96,2.69]
[1761250520936,1.59690359,190.05,189.97,1.59690359]
[1761250521235,7.25502344,190.05,189.97,4.28690359]
[1761250521441,4.7356,190.01,189.98,2.69]
[1761250521742,2.72,190.03,189.96,1.59690359]
[1761250522638,4.736,189.99,189.94,2.69]
[1761250522845,1.59690359,190.01,189.93,2.74]
[1761250523142,2.72,190.0,189.93,4.33690359]
[1761250523438,4.7366,189.97,189.94,2.69]
[1761250523637,4.7366,189.97,189.95,1.59690359]
[1761250524243,4.7366,189.97,189.94,2.69]
[1761250526736,7.57264656,190.06,189.97,2.74]
[1761250526932,2.82,190.08,190.01,1.59690359]
[1761250527136,4.735,190.03,190.01,1.59690359]
[1761250528736,4.735,190.03,189.99,2.7]
[1761250531744,2.87,190.02,189.99,2.7]
[1761250532145,7.6053,190.02,189.99,2.7]
[1761250532445,2.87,190.1,190.02,2.7]
[1761250532643,6.82331195,190.1,190.02,2.7]
[1761250532853,3.95331195,190.09,190.04,2.76894865]
[1761250533148,2.87,190.08,190.04,5.46894865]
[1761250533744,2.87,190.07,190.04,2.76894865]
[1761250533951,2.87,190.06,190.04,2.76894865]
[1761250534246,2.87,190.09,190.04,2.76894865]
[1761250534445,2.87,190.08,190.04,5.46894865]
[1761250534744,4.7335,190.09,190.05,2.7]
[1761250535047,7.39071104,190.11,190.07,5.46894865]
[1761250535048,3.95258203,190.1,190.07,5.46894865]
[1761250535445,4.733,190.11,190.08,2.7]
[1761250535645,3.95258203,190.12,190.1,2.76894865]
[1761250535837,6.82258203,190.13,190.1,2.76894865]
[1761250536043,6.82258203,190.13,190.08,2.7]
[1761250536044,8.68538203,190.12,190.08,2.7]
[1761250538244,3.95258203,190.12,190.08,2.7]
[1761250538445,3.95924584,190.13,190.08,2.7]
[1761250538844,4.7322,190.14,190.08,2.7]
[1761250539644,4.7322,190.14,190.09,2.7]
[1761250540453,7.6022,190.14,190.09,2.7]
[1761250540644,3.95924584,190.13,190.09,2.7]
[1761250541245,4.7322,190.14,190.09,2.7]
[1761250542353,8.68720274,190.16,190.09,2.7]
[1761250543754,11.55720274,190.16,190.09,2.7]
[1761250543954,7.6017,190.16,190.09,2.7]
[1761250544352,2.87,190.09,190.0,2.7]
[1761250544649,2.87,190.09,189.98,2.76894865]
[1761250544849,2.87,190.09,189.99,2.7]
[1761250545151,4.7343,190.06,189.99,7.4357]
[1761250545559,3.95127999,190.07,190.0,2.7]
[1761250545760,2.87,190.08,190.0,2.7]
[1761250546451,9.59022864,190.08,190.0,2.7]
[1761250546650,8.68527999,190.07,190.0,2.7]
[1761250546850,4.734,190.07,190.0,2.7]
[1761250547050,4.734,190.07,190.01,2.7]
[1761250548259,7.604,190.07,190.01,2.7]
[1761250549349,2.87,190.07,190.01,2.7]
[1761250550356,2.87,190.07,190.01,7.4352]
[1761250550658,2.87,190.1,190.02,2.7]
[1761250551853,2.87,190.1,190.04,4.7346]
[1761250552058,2.76894865,190.12,190.05,2.7]
[1761250552259,5.63894865,190.12,190.05,2.7]
[1761250552459,9.59441072,190.12,190.05,2.7]
[1761250552957,9.59441072,190.12,190.06,4.7341]
[1761250553158,5.63894865,190.12,190.06,7.4341]
[1761250554063,2.87,190.12,190.06,7.4341]
[1761250555559,7.6028,190.12,190.06,7.4341]
[1761250556162,7.603,190.11,190.06,2.7]
[1761250556463,2.87,190.1,190.06,2.7]
[1761250556856,4.733,190.11,190.06,2.7]
[1761250557166,7.603,190.11,190.06,2.7]
[1761250557465,2.87,190.09,190.06,2.7]
[1761250560261,4.7333,190.1,190.06,2.7]
[1761250560458,7.4733,190.1,190.06,2.7]
[1761250562764,2.74,190.09,190.06,2.7]
[1761250564169,4.7333,190.1,190.06,2.7]
[1761250566769,7.4733,190.1,190.06,2.7]
[1761250568870,4.7333,190.1,190.06,2.7]
[1761250570664,7.4733,190.1,190.06,2.7]
[1761250571976,2.74,190.09,190.06,2.7]
[1761250572273,6.70639707,190.09,190.06,2.7]
[1761250572465,2.74,190.09,190.06,2.7]
[1761250572973,7.4733,190.1,190.06,2.7]
[1761250573174,3.96654255,190.09,190.06,2.7]
[1761250575772,4.7333,190.1,190.06,2.7]
[1761250576278,11.43984255,190.1,190.06,2.7]
[1761250576470,3.96654255,190.09,190.06,2.7]
[1761250580078,4.7333,190.1,190.06,2.7]
[1761250580474,8.69984255,190.1,190.06,2.7]
[1761250580776,3.96654255,190.09,190.06,2.7]
[1761250580976,4.7333,190.1,190.06,2.7]
[1761250581472,8.69984255,190.1,190.06,2.7]
[1761250581673,3.96654255,190.09,190.06,2.7]
[1761250581870,4.7333,190.1,190.06,2.7]
[1761250582075,11.43984255,190.1,190.06,2.7]
[1761250582273,3.96654255,190.09,190.06,2.7]
[1761250583672,4.7333,190.1,190.06,2.7]
[1761250584176,11.43984255,190.1,190.06,2.7]
[1761250584475,3.96654255,190.09,190.06,2.7]
[1761250588175,2.78,190.07,190.0,2.7]
[1761250588366,2.78,190.06,190.0,2.7]
[1761250589079,2.85,190.04,190.0,7.4354]
[1761250589477,2.85,190.03,189.98,7.366]
[1761250589679,3.98178587,190.03,189.99,2.63]
[1761250589873,6.83178587,190.04,189.99,2.63]
[1761250590181,6.83178587,190.03,189.99,2.63]
[1761250590369,3.98178587,190.02,189.99,2.63]
[1761250590673,2.85,190.03,189.99,2.63]
[1761250590879,2.85,190.02,189.99,2.63]
[1761250592279,2.85,190.02,189.98,2.63]
[1761250592678,6.83178587,190.02,189.98,2.63]
[1761250593282,3.98178587,190.02,189.98,2.63]
[1761250593480,2.85,190.01,189.98,2.63]
[1761250599077,2.85,189.99,189.92,2.63]
[1761250599474,3.97502685,190.02,189.92,2.63]
[1761250599677,2.85,190.01,189.9,44.48]
[1761250599874,6.48173698,190.06,189.97,1.77230425]
[1761250599875,2.85,190.04,189.97,1.77230425]
[1761250600376,2.85,190.02,189.97,1.77230425]
[1761250600676,2.85,190.02,189.95,1.77230425]
[1761250600876,2.85,190.01,189.95,1.77230425]
[1761250601081,2.85,190.01,189.96,2.63]
[1761250601476,2.85,190.01,189.96,7.3665]
[1761250601681,2.85,190.01,189.97,2.63]
[1761250602785,2.85,190.01,189.95,2.63]
[1761250602980,2.85,190.01,189.95,4.40230425]
[1761250603184,4.735,190.03,189.96,2.63]
[1761250603482,8.70509247,190.03,189.96,2.63]
[1761250603682,4.735,190.03,189.96,2.63]
[1761250603880,7.585,190.03,189.96,4.40230425]
[1761250604084,7.585,190.03,189.97,7.3662]
[1761250604978,2.85,190.02,189.97,7.3662]
[1761250607978,2.85,190.01,189.97,7.3662]
[1761250609592,2.85,190.01,189.98,2.63]
[1761250610087,9.35670425,190.05,189.98,2.63]
[1761250610294,6.81670486,190.04,189.99,2.63]
[1761250610589,2.85,190.04,189.99,2.63]
[1761250611788,2.85,190.04,190.01,7.3653]
[1761250613985,2.85,190.04,190.02,4.7349]
[1761250614186,2.85,190.07,190.03,2.63]
[1761250614485,2.85,190.07,190.02,1.77230425]
[1761250614486,2.85,190.07,190.04,4.40230425]
[1761250615294,2.85,190.07,190.05,2.63]
[1761250615602,2.85,190.07,190.05,7.3643]
[1761250618284,2.85,190.07,189.96,9.4732]
[1761250618485,2.85,190.07,190.03,4.40230425]
[1761250619094,2.85,190.07,190.04,2.79]
[1761250619997,2.85,190.07,190.05,4.7343]
[1761250620794,2.62,190.09,190.05,7.5243]
[1761250622100,2.62,190.15,190.07,1.77230425]
[1761250622395,2.62,190.14,190.06,1.77230425]
[1761250622898,2.62,190.14,190.08,1.77230425]
[1761250623099,2.62,190.13,190.09,2.79]
[1761250623694,2.62,190.13,190.09,7.5233]
[1761250623895,2.62,190.13,190.1,2.79]
[1761250624102,6.5885528,190.16,190.11,2.79]
[1761250624302,2.62,190.16,190.11,2.79]
[1761250626492,2.62,190.16,190.13,4.7323]
[1761250626697,2.62,190.16,190.13,7.5223]
[1761250627103,4.7305,190.21,190.14,4.732]
[1761250627403,2.62,190.2,190.13,2.79]
[1761250627802,2.62,190.2,190.15,4.7317]
[1761250628099,2.62,190.19,190.15,4.7317]
[1761250630602,2.62,190.19,190.15,7.5217]
[1761250634307,2.62,190.19,190.15,2.79]
[1761250634517,2.62,190.18,190.12,2.79]
[1761250635613,2.62,190.18,190.12,7.5225]
[1761250636909,2.62,190.18,190.13,2.79]
[1761250637500,2.62,190.18,190.13,7.5223]
[1761250637706,2.62,190.18,190.14,2.79]
[1761250638805,1.77230425,190.19,190.15,2.79]
[1761250639108,2.62,190.19,190.15,2.79]
[1761250639621,2.62,190.19,190.16,2.79]
[1761250640004,2.62,190.19,190.15,4.7317]
[1761250640915,2.62,190.19,190.13,7.5223]
[1761250641210,2.62,190.24,190.18,2.79]
[1761250641414,2.62,190.27,190.21,7.5203]
[1761250643113,2.62,190.27,190.22,2.79]
[1761250643821,2.62,190.27,190.23,2.79]
[1761250644012,4.39230425,190.3,190.23,2.79]
[1761250644413,4.39230425,190.3,190.24,1.77230425]
[1761250644919,4.39230425,190.3,190.24,4.56230425]
[1761250645317,2.62,190.3,190.24,4.56230425]
[1761250645613,2.62,190.29,190.24,4.56230425]
[1761250646519,2.79,190.25,190.17,62.0]
[1761250646719,1.77230425,190.24,190.17,1.77230425]
[1761250646911,1.77230425,190.24,190.17,4.64230425]
[1761250646912,4.56230425,190.24,190.17,4.64230425]
[1761250647111,2.79,190.24,190.17,4.64230425]
[1761250648112,2.79,190.24,190.18,7.601]
[1761250653022,2.83,190.23,190.18,7.601]
[1761250654025,2.83,190.23,190.12,2.69]
[1761250654321,2.83,190.21,190.12,2.69]
[1761250654522,2.83,190.17,190.12,2.69]
[1761250656112,2.83,190.17,190.12,7.4225]
[1761250658526,2.83,190.17,190.12,2.69]
[1761250660118,3.98027463,190.18,190.12,2.69]
[1761250660325,6.81027463,190.2,190.12,2.69]
[1761250660723,2.76348376,190.16,190.05,2.69]
[1761250660925,2.83,190.13,190.05,2.69]
[1761250661127,2.83,190.11,190.05,2.69]
[1761250661426,2.83,190.1,190.05,2.69]
[1761250661730,2.83,190.09,190.05,2.69]
[1761250662524,2.83,190.09,190.02,7.4249]
[1761250663625,2.83,190.09,190.03,4.7347]
[1761250663931,2.83,190.09,190.03,7.4247]
[1761250664722,6.48173698,190.16,190.03,7.4247]
[1761250664723,4.60690027,190.19,190.08,2.69]
[1761250664929,2.83,190.22,190.13,2.69]
[1761250665227,2.83,190.22,190.17,2.76348376]
[1761250665431,2.83,190.22,190.17,5.45348376]
[1761250665829,7.5603,190.22,190.14,4.7321]
[1761250666021,2.83,190.21,190.14,4.7321]
[1761250666622,7.5606,190.21,190.14,4.7321]